fUSD/lending_fUSD_20250616
["ID","MTS","AMOUNT","RATE_DAILY","PERIOD"]
[366123761,1750077034575,-490.0,0.00016438,2]
[366123763,1750077034585,-538.27,0.00016438,2]
[366123765,1750077034594,-490.0,0.00016438,2]
[366123766,1750077034604,-490.0,0.00016438,2]
[366123768,1750077034613,-490.0,0.00016438,2]
[366123770,1750077034623,-490.0,0.00016438,2]
[366123771,1750077034633,-490.0,0.00016438,2]
[366123773,1750077034645,-592.5,0.00016438,2]
[366123775,1750077034654,-541.58,0.00016438,2]
[366123777,1750077034663,-490.0,0.00016438,2]
[366123778,1750077034673,-490.0,0.00016438,2]
[366123780,1750077034682,-490.0,0.00016438,2]
[366123782,1750077034692,-550.7,0.00016438,2]
[366123783,1750077034704,-490.0,0.00016438,2]
[366123785,1750077034714,-490.0,0.00016438,2]
[366123787,1750077034724,-490.0,0.00016438,2]
[366123788,1750077034734,-490.0,0.00016438,2]
[366123790,1750077034743,-490.0,0.00016438,2]
[366123792,1750077034752,-490.0,0.00016438,2]
[366123794,1750077034762,-456.32867385,0.00016438,2]
[366123796,1750077034771,-490.0,0.00016438,2]
[366123797,1750077034781,-490.0,0.00016438,2]
[366123799,1750077034790,-491.96469677,0.00016438,2]
[366123801,1750077034800,-490.0,0.00016438,2]
[366123802,1750077034809,-490.0,0.00016438,2]
[366123804,1750077034819,-499.52003681,0.00016438,2]
[366123806,1750077034828,-490.0,0.00016438,2]
[366123808,1750077034837,-495.01054497,0.00016438,2]
[366123809,1750077034847,-490.0,0.00016438,2]
[366123811,1750077034856,-490.0,0.00016438,2]
[366123813,1750077034865,-490.0,0.00016438,2]
[366123815,1750077034875,-490.0,0.00016438,2]
[366123817,1750077034884,-490.0,0.00016438,2]
[366123818,1750077034894,-499.95443992,0.00016438,2]
[366123820,1750077034903,-490.0,0.00016438,2]
[366123822,1750077034913,-490.0,0.00016438,2]
[366123824,1750077034925,-490.0,0.00016438,2]
[366123826,1750077034935,-490.0,0.00016438,2]
[366123828,1750077034945,-490.0,0.00016438,2]
[366123829,1750077034954,-612.11,0.00016438,2]
[366123831,1750077034963,-490.0,0.00016438,2]
[366123833,1750077034972,-490.0,0.00016438,2]
[366123835,1750077034983,-490.0,0.00016438,2]
[366123837,1750077034992,-490.0,0.00016438,2]
[366123838,1750077035002,-490.0,0.00016438,2]
[366123840,1750077035011,-490.0,0.00016438,2]
[366123842,1750077035020,-490.70277094,0.00016438,2]
[366123844,1750077035030,-499.03835969,0.00016438,2]
[366123845,1750077035039,-490.0,0.00016438,2]
[366123847,1750077035049,-490.0,0.00016438,2]
[366123849,1750077035059,-490.0,0.00016438,2]
[366123851,1750077035068,-490.0,0.00016438,2]
[366123853,1750077035077,-490.0,0.00016438,2]
[366123854,1750077035086,-490.0,0.00016438,2]
[366123856,1750077035096,-492.54,0.00016438,2]
[366123858,1750077035106,-404.02119531,0.00016438,2]
[366123860,1750077035115,-409.28421031,0.00016438,2]
[366123861,1750077035125,-492.37663235,0.00016438,2]
[366123863,1750077035134,-490.0,0.00016438,2]
[366123865,1750077035143,-490.0,0.00016438,2]
[366123867,1750077035152,-490.0,0.00016438,2]
[366123869,1750077035162,-490.0,0.00016438,2]
[366123870,1750077035171,-490.0,0.00016438,2]
[366123872,1750077035181,-492.06276687,0.00016438,2]
[366123874,1750077035190,-490.0,0.00016438,2]
[366123876,1750077035201,-490.0,0.00016438,2]
[366123878,1750077035211,-490.71573781,0.00016438,2]
[366123880,1750077035221,-490.0,0.00016438,2]
[366123881,1750077035230,-490.0,0.00016438,2]
[366123883,1750077035240,-495.47103687,0.00016438,2]
[366123885,1750077035250,-488.94179837,0.00016438,2]
[366123887,1750077035260,-246.95870401,0.00016438,2]
[366123889,1750077035269,-490.0,0.00016438,2]
[366123890,1750077035278,-490.0,0.00016438,2]
[366123892,1750077035288,-492.36567323,0.00016438,2]
[366123894,1750077035298,-490.0,0.00016438,2]
[366123896,1750077035307,-490.0,0.00016438,2]
[366123898,1750077035317,-490.0,0.00016438,2]
[366123899,1750077035326,-490.0,0.00016438,2]
[366123901,1750077035336,-490.0,0.00016438,2]
[366123903,1750077035346,-490.0,0.00016438,2]
[366123905,1750077035355,-490.0,0.00016438,2]
[366123906,1750077035364,-490.0,0.00016438,2]
[366123908,1750077035373,-490.0,0.00016438,2]
[366123910,1750077035383,-490.0,0.00016438,2]
[366123912,1750077035392,-490.0,0.00016438,2]
[366123914,1750077035402,-895.36,0.00016438,2]
[366123915,1750077035412,-490.0,0.00016438,2]
[366123917,1750077035421,-490.0,0.00016438,2]
[366123919,1750077035430,-490.0,0.00016438,2]
[366123921,1750077035440,-490.0,0.00016438,2]
[366123923,1750077035450,-494.75702847,0.00016438,2]
[366123924,1750077035460,-490.0,0.00016438,2]
[366123926,1750077035469,-490.0,0.00016438,2]
[366123928,1750077035478,-490.0,0.00016438,2]
[366123930,1750077035488,-490.0,0.00016438,2]
[366123931,1750077035498,-490.0,0.00016438,2]
[366123933,1750077035508,-490.0,0.00016438,2]
[366123935,1750077035518,-780.24,0.00016438,2]
[366123937,1750077035528,-1016.69,0.00016438,2]
[366123938,1750077035538,-490.0,0.00016438,2]
[366123939,1750077035549,-490.0,0.00016438,2]
[366123940,1750077035559,-490.0,0.00016438,2]
[366123941,1750077035568,-492.69364221,0.00016438,2]
[366123942,1750077035578,-490.0,0.00016438,2]
[366123943,1750077035587,-490.0,0.00016438,2]
[366123944,1750077035596,-490.0,0.00016438,2]
[366123945,1750077035606,-490.0,0.00016438,2]
[366123946,1750077035615,-500.90944536,0.00016438,2]
[366123947,1750077035625,-491.93456095,0.00016438,2]
[366123948,1750077035637,-490.0,0.00016438,2]
[366123949,1750077035647,-542.76,0.00016438,2]
[366123950,1750077035657,-497.41435591,0.00016438,2]
[366123951,1750077035666,-490.0,0.00016438,2]
[366123952,1750077035675,-490.0,0.00016438,2]
[366123953,1750077035685,-490.0,0.00016438,2]
[366123955,1750077035695,-490.0,0.00016438,2]
[366123956,1750077035704,-502.38,0.00016438,2]
[366123958,1750077035714,-490.0,0.00016438,2]
[366123960,1750077035723,-494.43329567,0.00016438,2]
[366123962,1750077035733,-490.0,0.00016438,2]
[366123964,1750077035743,-490.0,0.00016438,2]
[366123966,1750077035752,-490.0,0.00016438,2]
[366123968,1750077035762,-490.0,0.00016438,2]
[366123970,1750077035771,-490.0,0.00016438,2]
[366123993,1750077035989,-490.0,0.00016438,2]
[366123996,1750077036004,-499.37990546,0.00016438,2]
[366123998,1750077036014,-490.0,0.00016438,2]
[366124000,1750077036023,-530.26,0.00016438,2]
[366124002,1750077036033,-500.0,0.00016438,2]
[366124004,1750077036043,-490.0,0.00016438,2]
[366124006,1750077036053,-477.26711621,0.00016438,2]
[366124008,1750077036063,-490.0,0.00016438,2]
[366124010,1750077036073,-490.0,0.00016438,2]
[366124012,1750077036083,-517.65,0.00016438,2]
[366124014,1750077036093,-490.0,0.00016438,2]
[366124016,1750077036103,-490.0,0.00016438,2]
[366124018,1750077036112,-490.0,0.00016438,2]
[366124020,1750077036122,-1000.0,0.00016438,2]
[366124022,1750077036132,-423.66342971,0.00016438,2]
[366124024,1750077036141,-490.0,0.00016438,2]
[366124026,1750077036151,-490.9510963,0.00016438,2]
[366124028,1750077036161,-490.0,0.00016438,2]
[366124030,1750077036171,-490.0,0.00016438,2]
[366124032,1750077036180,-511.44271607,0.00016438,2]
[366124034,1750077036190,-490.0,0.00016438,2]
[366124036,1750077036200,-490.0,0.00016438,2]
[366124038,1750077036209,-563.09,0.00016438,2]
[366124040,1750077036219,-511.32,0.00016438,2]
[366124042,1750077036228,-490.0,0.00016438,2]
[366124044,1750077036238,-490.0,0.00016438,2]
[366124046,1750077036248,-490.0,0.00016438,2]
[366124047,1750077036258,-490.0,0.00016438,2]
[366124049,1750077036268,-490.0,0.00016438,2]
[366124051,1750077036278,-490.0,0.00016438,2]
[366124054,1750077036289,-500.0,0.00016438,2]
[366124056,1750077036299,-490.91705033,0.00016438,2]
[366124058,1750077036308,-490.0,0.00016438,2]
[366124059,1750077036318,-490.0,0.00016438,2]
[366124061,1750077036328,-490.0,0.00016438,2]
[366124063,1750077036337,-490.0,0.00016438,2]
[366124065,1750077036347,-490.0,0.00016438,2]
[366124067,1750077036356,-1386.01,0.00016438,2]
[366124069,1750077036366,-490.0,0.00016438,2]
[366124071,1750077036375,-492.94784117,0.00016438,2]
[366124073,1750077036385,-581.5,0.00016438,2]
[366124075,1750077036394,-490.0,0.00016438,2]
[366124077,1750077036404,-490.0,0.00016438,2]
[366124079,1750077036414,-490.0,0.00016438,2]
[366124081,1750077036423,-490.0,0.00016438,2]
[366124083,1750077036433,-490.0,0.00016438,2]
[366124085,1750077036443,-490.0,0.00016438,2]
[366124087,1750077036454,-490.0,0.00016438,2]
[366124089,1750077036463,-543.74,0.00016438,2]
[366124091,1750077036473,-490.0,0.00016438,2]
[366124093,1750077036482,-1338.55,0.00016438,2]
[366124095,1750077036491,-490.0,0.00016438,2]
[366124097,1750077036501,-1103.62,0.00016438,2]
[366124099,1750077036511,-256.56116103,0.00016438,2]
[366124101,1750077036520,-490.0,0.00016438,2]
[366124103,1750077036530,-490.0,0.00016438,2]
[366124105,1750077036539,-490.0,0.00016438,2]
[366124107,1750077036548,-490.0,0.00016438,2]
[366124109,1750077036558,-938.25,0.00016438,2]
[366124111,1750077036567,-490.0,0.00016438,2]
[366124113,1750077036577,-490.0,0.00016438,2]
[366124115,1750077036586,-490.0,0.00016438,2]
[366124117,1750077036595,-663.4,0.00016438,2]
[366124119,1750077036605,-219.43749144,0.00016438,2]
[366124121,1750077036615,-490.0,0.00016438,2]
[366124123,1750077036625,-490.0,0.00016438,2]
[366124125,1750077036635,-490.0,0.00016438,2]
[366124127,1750077036653,-490.0,0.00016438,2]
[366124129,1750077036663,-490.0,0.00016438,2]
[366124132,1750077036673,-490.0,0.00016438,2]
[366124134,1750077036684,-490.0,0.00016438,2]
[366124136,1750077036694,-490.0,0.00016438,2]
[366124138,1750077036705,-995.29,0.00016438,2]
[366124140,1750077036718,-490.0,0.00016438,2]
[366124142,1750077036728,-491.46123741,0.00016438,2]
[366124144,1750077036739,-490.0,0.00016438,2]
[366124146,1750077036749,-490.0,0.00016438,2]
[366124148,1750077036759,-490.0,0.00016438,2]
[366124150,1750077036769,-490.0,0.00016438,2]
[366124152,1750077036780,-490.0,0.00016438,2]
[366124154,1750077036790,-522.86,0.00016438,2]
[366124156,1750077036800,-490.0,0.00016438,2]
[366124157,1750077036809,-490.0,0.00016438,2]
[366124159,1750077036819,-490.0,0.00016438,2]
[366124161,1750077036831,-490.0,0.00016438,2]
[366124163,1750077036841,-490.0,0.00016438,2]
[366124166,1750077036851,-490.0,0.00016438,2]
[366124168,1750077036863,-1126.57,0.00016438,2]
[366124170,1750077036872,-1180.54,0.00016438,2]
[366124172,1750077036882,-490.0,0.00016438,2]
[366124174,1750077036895,-490.0,0.00016438,2]
[366124176,1750077036905,-954.97,0.00016438,2]
[366124178,1750077036915,-490.0,0.00016438,2]
[366124180,1750077036926,-490.0,0.00016438,2]
[366124182,1750077036935,-490.0,0.00016438,2]
[366124184,1750077036946,-1046.55,0.00016438,2]
[366124186,1750077036957,-937.15,0.00016438,2]
[366124188,1750077036966,-490.0,0.00016438,2]
[366124190,1750077036976,-497.7246045,0.00016438,2]
[366124192,1750077036986,-490.0,0.00016438,2]
[366124194,1750077036996,-956.81,0.00016438,2]
[366124196,1750077037006,-490.0,0.00016438,2]
[366124198,1750077037016,-490.0,0.00016438,2]
[366124201,1750077037027,-490.0,0.00016438,2]
[366124203,1750077037037,-490.0,0.00016438,2]
[366124205,1750077037047,-490.0,0.00016438,2]
[366124207,1750077037057,-490.0,0.00016438,2]
[366124209,1750077037067,-490.0,0.00016438,2]
[366124211,1750077037077,-490.0,0.00016438,2]
[366124213,1750077037087,-490.0,0.00016438,2]
[366124215,1750077037102,-490.0,0.00016438,2]
[366124217,1750077037112,-490.0,0.00016438,2]
[366124219,1750077037122,-576.54,0.00016438,2]
[366124221,1750077037132,-490.0,0.00016438,2]
[366124223,1750077037142,-491.400113,0.00016438,2]
[366124226,1750077037152,-490.0,0.00016438,2]
[366124227,1750077037162,-490.0,0.00016438,2]
[366124229,1750077037172,-490.0,0.00016438,2]
[366124232,1750077037182,-495.4832405,0.00016438,2]
[366124234,1750077037192,-493.21416407,0.00016438,2]
[366124236,1750077037204,-490.0,0.00016438,2]
[366124238,1750077037214,-490.0,0.00016438,2]
[366124240,1750077037224,-490.0,0.00016438,2]
[366124242,1750077037234,-1118.09,0.00016438,2]
[366124244,1750077037244,-490.0,0.00016438,2]
[366124246,1750077037254,-490.0,0.00016438,2]
[366124248,1750077037264,-491.92165109,0.00016438,2]
[366124250,1750077037274,-490.0,0.00016438,2]
[366124252,1750077037284,-490.0,0.00016438,2]
[366124254,1750077037294,-490.88904172,0.00016438,2]
[366124256,1750077037303,-490.0,0.00016438,2]
[366124258,1750077037313,-490.0,0.00016438,2]
[366124260,1750077037322,-490.0,0.00016438,2]
[366124262,1750077037333,-490.0,0.00016438,2]
[366124264,1750077037343,-490.0,0.00016438,2]
[366124266,1750077037352,-490.0,0.00016438,2]
[366124268,1750077037363,-585.24,0.00016438,2]
[366124270,1750077037372,-490.0,0.00016438,2]
[366124272,1750077037382,-490.0,0.00016438,2]
[366124274,1750077037391,-490.0,0.00016438,2]
[366124276,1750077037401,-490.0,0.00016438,2]
[366124278,1750077037411,-723.1,0.00016438,2]
[366124280,1750077037422,-490.0,0.00016438,2]
[366124282,1750077037432,-490.0,0.00016438,2]
[366124284,1750077037441,-490.0,0.00016438,2]
[366124286,1750077037452,-490.0,0.00016438,2]
[366124288,1750077037462,-490.0,0.00016438,2]
[366124290,1750077037472,-584.41,0.00016438,2]
[366124293,1750077037482,-904.15,0.00016438,2]
[366124295,1750077037492,-490.0,0.00016438,2]
[366124297,1750077037503,-490.0,0.00016438,2]
[366124299,1750077037513,-983.79,0.00016438,2]
[366124301,1750077037523,-490.0,0.00016438,2]
[366124303,1750077037533,-490.0,0.00016438,2]
[366124305,1750077037543,-494.56,0.00016438,2]
[366124307,1750077037552,-490.0,0.00016438,2]
[366124309,1750077037563,-490.0,0.00016438,2]
[366124311,1750077037572,-490.0,0.00016438,2]
[366124313,1750077037582,-1035.12,0.00016438,2]
[366124315,1750077037592,-490.0,0.00016438,2]
[366124317,1750077037601,-828.27,0.00016438,2]
[366124319,1750077037612,-490.0,0.00016438,2]
[366124321,1750077037623,-557.52,0.00016438,2]
[366124323,1750077037634,-542.5,0.00016438,2]
[366124325,1750077037651,-490.0,0.00016438,2]
[366124327,1750077037661,-490.0,0.00016438,2]
[366124329,1750077037670,-490.0,0.00016438,2]
[366124331,1750077037680,-490.0,0.00016438,2]
[366124333,1750077037690,-678.43,0.00016438,2]
[366124335,1750077037700,-490.0,0.00016438,2]
[366124337,1750077037710,-490.5064883,0.00016438,2]
[366124338,1750077037720,-490.0,0.00016438,2]
[366124340,1750077037730,-1225.76,0.00016438,2]
[366124342,1750077037740,-491.18698136,0.00016438,2]
[366124344,1750077037749,-1050.14,0.00016438,2]
[366124346,1750077037759,-490.0,0.00016438,2]
[366124348,1750077037770,-900.46,0.00016438,2]
[366124350,1750077037780,-490.0,0.00016438,2]
[366124352,1750077037790,-490.0,0.00016438,2]
[366124354,1750077037800,-490.0,0.00016438,2]
[366124356,1750077037810,-490.0,0.00016438,2]
[366124358,1750077037821,-976.95,0.00016438,2]
[366124360,1750077037831,-645.71,0.00016438,2]
[366124362,1750077037841,-490.0,0.00016438,2]
[366124364,1750077037851,-490.0,0.00016438,2]
[366124366,1750077037861,-490.0,0.00016438,2]
[366124368,1750077037871,-570.2,0.00016438,2]
[366124370,1750077037882,-490.0,0.00016438,2]
[366124372,1750077037891,-511.75,0.00016438,2]
[366124374,1750077037902,-490.0,0.00016438,2]
[366124376,1750077037912,-1048.43,0.00016438,2]
[366124378,1750077037922,-490.0,0.00016438,2]
[366124380,1750077037933,-492.37218942,0.00016438,2]
[366124382,1750077037943,-687.88,0.00016438,2]
[366124384,1750077037954,-500.38,0.00016438,2]
[366124386,1750077037963,-1142.02,0.00016438,2]
[366124387,1750077037973,-604.85,0.00016438,2]
[366124389,1750077037983,-502.26,0.00016438,2]
[366124391,1750077037993,-1236.53,0.00016438,2]
[366124393,1750077038003,-490.0,0.00016438,2]
[366124396,1750077038013,-490.0,0.00016438,2]
[366124397,1750077038023,-490.0,0.00016438,2]
[366124400,1750077038034,-500.0,0.00016438,2]
[366124402,1750077038045,-500.0,0.00016438,2]
[366124404,1750077038055,-500.0,0.00016438,2]
[366124406,1750077038065,-500.0,0.00016438,2]
[366124407,1750077038075,-307.87643477,0.00016438,2]
[366124411,1750077038099,-491.31180553,0.00016438,2]
[366124413,1750077038110,-490.0,0.00016438,2]
[366124415,1750077038122,-718.4,0.00016438,2]
[366124417,1750077038132,-491.8559127,0.00016438,2]
[366124419,1750077038143,-490.0,0.00016438,2]
[366124421,1750077038153,-1094.32,0.00016438,2]
[366124423,1750077038163,-493.74293135,0.00016438,2]
[366124425,1750077038174,-490.0,0.00016438,2]
[366124427,1750077038185,-430.64978819,0.00016438,2]
[366124430,1750077038196,-492.00169608,0.00016438,2]
[366124432,1750077038206,-490.0,0.00016438,2]
[366124434,1750077038217,-1086.93,0.00016438,2]
[366124436,1750077038228,-536.86,0.00016438,2]
[366124438,1750077038238,-490.0,0.00016438,2]
[366124439,1750077038249,-1293.13,0.00016438,2]
[366124440,1750077038259,-490.0,0.00016438,2]
[366124441,1750077038270,-490.0,0.00016438,2]
[366124442,1750077038281,-490.0,0.00016438,2]
[366124443,1750077038291,-490.0,0.00016438,2]
[366124444,1750077038302,-490.0,0.00016438,2]
[366124445,1750077038312,-490.0,0.00016438,2]
[366124446,1750077038323,-491.28072976,0.00016438,2]
[366124447,1750077038334,-324.68856011,0.00016438,2]
[366124495,1750077038859,-1091.36,0.00016438,2]
[366124497,1750077038878,-464.04810628,0.00016438,2]
[366124499,1750077038888,-490.0,0.00016438,2]
[366124501,1750077038898,-490.0,0.00016438,2]
[366124503,1750077038908,-797.31,0.00016438,2]
[366124505,1750077038918,-490.0,0.00016438,2]
[366124507,1750077038928,-875.68,0.00016438,2]
[366124509,1750077038937,-498.54,0.00016438,2]
[366124511,1750077038947,-560.24,0.00016438,2]
[366124513,1750077038957,-598.74,0.00016438,2]
[366124515,1750077038967,-492.51199845,0.00016438,2]
[366124517,1750077038977,-490.0,0.00016438,2]
[366124519,1750077038986,-733.57,0.00016438,2]
[366124521,1750077038996,-345.50341636,0.00016438,2]
[366124523,1750077039005,-913.42,0.00016438,2]
[366124525,1750077039014,-1111.79,0.00016438,2]
[366124527,1750077039024,-641.2,0.00016438,2]
[366124529,1750077039033,-527.1,0.00016438,2]
[366124531,1750077039043,-490.0,0.00016438,2]
[366124533,1750077039053,-490.0,0.00016438,2]
[366124535,1750077039063,-491.01517652,0.00016438,2]
[366124537,1750077039073,-490.0,0.00016438,2]
[366124539,1750077039083,-490.0,0.00016438,2]
[366124541,1750077039093,-490.0,0.00016438,2]
[366124543,1750077039102,-490.0,0.00016438,2]
[366124545,1750077039112,-490.0,0.00016438,2]
[366124547,1750077039122,-490.0,0.00016438,2]
[366124549,1750077039132,-490.0,0.00016438,2]
[366124551,1750077039143,-490.0,0.00016438,2]
[366124553,1750077039152,-490.0,0.00016438,2]
[366124555,1750077039162,-490.0,0.00016438,2]
[366124557,1750077039172,-603.19469352,0.00016438,2]
[366124559,1750077039183,-490.0,0.00016438,2]
[366124561,1750077039192,-493.17975875,0.00016438,2]
[366124563,1750077039202,-490.0,0.00016438,2]
[366124565,1750077039212,-490.0,0.00016438,2]
[366124567,1750077039222,-490.0,0.00016438,2]
[366124570,1750077039237,-494.77605668,0.00016438,2]
[366124572,1750077039247,-490.0,0.00016438,2]
[366124574,1750077039258,-490.0,0.00016438,2]
[366124576,1750077039267,-490.0,0.00016438,2]
[366124578,1750077039277,-490.0,0.00016438,2]
[366124580,1750077039287,-968.63,0.00016438,2]
[366124582,1750077039297,-490.0,0.00016438,2]
[366124584,1750077039307,-490.0,0.00016438,2]
[366124586,1750077039317,-660.66,0.00016438,2]
[366124588,1750077039328,-541.58,0.00016438,2]
[366124590,1750077039338,-490.0,0.00016438,2]
[366124592,1750077039348,-1676.3,0.00016438,2]
[366124594,1750077039357,-490.0,0.00016438,2]
[366124596,1750077039367,-579.92,0.00016438,2]
[366124598,1750077039377,-490.0,0.00016438,2]
[366124600,1750077039386,-490.0,0.00016438,2]
[366124602,1750077039396,-490.0,0.00016438,2]
[366124604,1750077039406,-350.33366529,0.00016438,2]
[366124606,1750077039415,-490.0,0.00016438,2]
[366124608,1750077039430,-1089.55,0.00016438,2]
[366124610,1750077039439,-490.0,0.00016438,2]
[366124613,1750077039450,-490.0,0.00016438,2]
[366124615,1750077039459,-490.0,0.00016438,2]
[366124617,1750077039469,-1057.21,0.00016438,2]
[366124619,1750077039479,-490.0,0.00016438,2]
[366124621,1750077039488,-490.0,0.00016438,2]
[366124623,1750077039498,-490.0,0.00016438,2]
[366124625,1750077039508,-490.0,0.00016438,2]
[366124627,1750077039519,-490.0,0.00016438,2]
[366124629,1750077039530,-490.0,0.00016438,2]
[366124631,1750077039540,-490.0,0.00016438,2]
[366124633,1750077039550,-1851.59,0.00016438,2]
[366124635,1750077039560,-490.0,0.00016438,2]
[366124637,1750077039570,-242.69083,0.00016438,2]
[366124639,1750077039579,-490.0,0.00016438,2]
[366124641,1750077039590,-490.0,0.00016438,2]
[366124643,1750077039600,-490.0,0.00016438,2]
[366124645,1750077039610,-1726.18,0.00016438,2]
[366124647,1750077039620,-1031.77,0.00016438,2]
[366124650,1750077039630,-490.0,0.00016438,2]
[366124652,1750077039645,-491.51920477,0.00016438,2]
[366124654,1750077039654,-356.82657006,0.00016438,2]
[366124655,1750077039664,-490.0,0.00016438,2]
[366124658,1750077039675,-492.46039575,0.00016438,2]
[366124660,1750077039685,-494.52409636,0.00016438,2]
[366124662,1750077039695,-507.43114,0.00016438,2]
[366124664,1750077039705,-267.28389373,0.00016438,2]
[366124666,1750077039717,-490.0,0.00016438,2]
[366124668,1750077039726,-490.0,0.00016438,2]
[366124670,1750077039737,-492.82552964,0.00016438,2]
[366124672,1750077039748,-622.91,0.00016438,2]
[366124674,1750077039759,-490.0,0.00016438,2]
[366124676,1750077039770,-490.0,0.00016438,2]
[366124678,1750077039780,-490.0,0.00016438,2]
[366124680,1750077039790,-846.86,0.00016438,2]
[366124682,1750077039800,-490.0,0.00016438,2]
[366124683,1750077039811,-490.0,0.00016438,2]
[366124685,1750077039821,-241.1019792,0.00016438,2]
[366124687,1750077039831,-500.0,0.00016438,2]
[366124689,1750077039841,-863.54,0.00016438,2]
[366124691,1750077039851,-490.0,0.00016438,2]
[366124693,1750077039860,-914.73,0.00016438,2]
[366124695,1750077039870,-490.0,0.00016438,2]
[366124697,1750077039881,-490.44183243,0.00016438,2]
[366124699,1750077039890,-1339.32,0.00016438,2]
[366124701,1750077039900,-490.0,0.00016438,2]
[366124703,1750077039912,-490.0,0.00016438,2]
[366124704,1750077039924,-490.0,0.00016438,2]
[366124706,1750077039934,-490.0,0.00016438,2]
[366124708,1750077039944,-490.0,0.00016438,2]
[366124710,1750077039955,-490.0,0.00016438,2]
[366124712,1750077039964,-490.0,0.00016438,2]
[366124714,1750077039974,-492.1697702,0.00016438,2]
[366124716,1750077039984,-655.55,0.00016438,2]
[366124718,1750077039995,-490.0,0.00016438,2]
[366124720,1750077040005,-490.0,0.00016438,2]
[366124723,1750077040015,-490.0,0.00016438,2]
[366124725,1750077040030,-490.0,0.00016438,2]
[366124727,1750077040040,-493.33494301,0.00016438,2]
[366124729,1750077040050,-562.74488468,0.00016438,2]
[366124731,1750077040060,-490.0,0.00016438,2]
[366124733,1750077040070,-551.55,0.00016438,2]
[366124735,1750077040080,-490.0,0.00016438,2]
[366124737,1750077040090,-490.0,0.00016438,2]
[366124739,1750077040100,-490.0,0.00016438,2]
[366124741,1750077040110,-341.66364328,0.00016438,2]
[366124743,1750077040120,-928.7,0.00016438,2]
[366124745,1750077040130,-1029.82,0.00016438,2]
[366124747,1750077040141,-490.0,0.00016438,2]
[366124750,1750077040152,-490.0,0.00016438,2]
[366124752,1750077040162,-490.0,0.00016438,2]
[366124754,1750077040172,-1403.71,0.00016438,2]
[366124756,1750077040182,-490.0,0.00016438,2]
[366124758,1750077040192,-490.0,0.00016438,2]
[366124760,1750077040203,-965.34,0.00016438,2]
[366124762,1750077040212,-503.74279479,0.00016438,2]
[366124764,1750077040222,-981.12,0.00016438,2]
[366124766,1750077040232,-490.0,0.00016438,2]
[366124767,1750077040242,-490.0,0.00016438,2]
[366124770,1750077040252,-490.0,0.00016438,2]
[366124772,1750077040262,-490.0,0.00016438,2]
[366124774,1750077040272,-490.0,0.00016438,2]
[366124776,1750077040282,-490.0,0.00016438,2]
[366124778,1750077040292,-490.0,0.00016438,2]
[366124780,1750077040303,-490.0,0.00016438,2]
[366124781,1750077040313,-1104.36,0.00016438,2]
[366124784,1750077040323,-1041.53,0.00016438,2]
[366124786,1750077040334,-490.0,0.00016438,2]